[Event "Early-Titled-Tuesday-Blitz-October-03-2023"]
[Site "Chess.com"]
[Date "2023.10.03"]
[Round "8"]
[White "hypert"]
[Black "AEMEffi"]
[Result "1-0"]
[WhiteElo "2533"]
[BlackElo "2387"]
[TimeControl "180+1"]
[EndTime "9:28:57 PDT"]
[Termination "hypert won by resignation"]

1. d4 {[%clk 0:02:59.5]} 1... d5 {[%clk 0:02:38.8]} 2. c4 {[%clk 0:02:54.5]}
2... c6 {[%clk 0:02:39.7]} 3. Nf3 {[%clk 0:02:53.5]} 3... Nf6 {[%clk 0:02:38.6]}
4. e3 {[%clk 0:02:53.2]} 4... a6 {[%clk 0:02:38.2]} 5. b3 {[%clk 0:02:50.6]}
5... b5 {[%clk 0:02:37.1]} 6. Bd3 {[%clk 0:02:48.5]} 6... Bg4 {[%clk 0:02:30.2]}
7. Nbd2 {[%clk 0:02:47.4]} 7... Nbd7 {[%clk 0:02:25.7]} 8. Qc2 {[%clk
0:02:44.4]} 8... Rc8 {[%clk 0:02:18.2]} 9. c5 {[%clk 0:02:36.9]} 9... g6 {[%clk
0:02:00.9]} 10. b4 {[%clk 0:02:36.1]} 10... Bg7 {[%clk 0:01:59.8]} 11. Bb2
{[%clk 0:02:35.9]} 11... O-O {[%clk 0:01:58.7]} 12. Ne5 {[%clk 0:02:26.8]} 12...
Be6 {[%clk 0:01:50.7]} 13. f4 {[%clk 0:02:25.4]} 13... Nxe5 {[%clk 0:01:42.4]}
14. fxe5 {[%clk 0:02:11.1]} 14... Nd7 {[%clk 0:01:39.2]} 15. O-O {[%clk
0:01:59.4]} 15... f6 {[%clk 0:01:29.5]} 16. exf6 {[%clk 0:01:57.3]} 16... exf6
{[%clk 0:01:29.8]} 17. a4 {[%clk 0:01:55.6]} 17... Qe7 {[%clk 0:01:22.2]} 18.
axb5 {[%clk 0:01:54.9]} 18... axb5 {[%clk 0:01:23.1]} 19. e4 {[%clk 0:01:42.7]}
19... Bh6 {[%clk 0:01:14.9]} 20. Nf3 {[%clk 0:01:36.8]} 20... dxe4 {[%clk
0:01:00.1]} 21. Bxe4 {[%clk 0:01:35.9]} 21... f5 {[%clk 0:01:00.4]} 22. d5
{[%clk 0:01:20.4]} 22... Bxd5 {[%clk 0:00:43.8]} 23. Bxd5+ {[%clk 0:01:18.1]}
23... cxd5 {[%clk 0:00:44.7]} 24. Rfe1 {[%clk 0:01:16.5]} 24... Qf7 {[%clk
0:00:40.4]} 25. Ra7 {[%clk 0:01:02.8]} 25... Bg7 {[%clk 0:00:14.9]} 26. Ng5
{[%clk 0:00:56.9]} 26... Bxb2 {[%clk 0:00:14.1]} 27. Nxf7 {[%clk 0:00:55.8]}
27... Bd4+ {[%clk 0:00:15]} 28. Kh1 {[%clk 0:00:55.2]} 28... Rxf7 {[%clk
0:00:15.9]} 29. Qd3 {[%clk 0:00:52.4]} 29... Bf6 {[%clk 0:00:11]} 30. Qxb5
{[%clk 0:00:51.1]} 30... Ne5 {[%clk 0:00:09.1]} 31. Rxf7 {[%clk 0:00:50.2]}
31... Nxf7 {[%clk 0:00:10]} 32. Qa6 {[%clk 0:00:46.2]} 1-0

[Event "Early-Titled-Tuesday-Blitz-October-03-2023"]
[Site "Chess.com"]
[Date "2023.10.03"]
[Round "8"]
[White "Sethu0025"]
[Black "Alexei_Gubajdullin"]
[Result "1-0"]
[WhiteElo "2873"]
[BlackElo "2751"]
[TimeControl "180+1"]
[EndTime "9:29:01 PDT"]
[Termination "Sethu0025 won on time"]

1. d4 {[%clk 0:03:00.9]} 1... Nf6 {[%clk 0:02:59.6]} 2. c4 {[%clk 0:03:01.2]}
2... g6 {[%clk 0:03:00]} 3. Nc3 {[%clk 0:03:00.5]} 3... Bg7 {[%clk 0:03:00.3]}
4. e4 {[%clk 0:03:00.3]} 4... d6 {[%clk 0:03:00.8]} 5. Be2 {[%clk 0:02:59.7]}
5... O-O {[%clk 0:02:57.8]} 6. Be3 {[%clk 0:02:59.6]} 6... Na6 {[%clk
0:02:57.8]} 7. Nf3 {[%clk 0:02:57.9]} 7... e5 {[%clk 0:02:57.2]} 8. d5 {[%clk
0:02:55.3]} 8... c5 {[%clk 0:02:44]} 9. Nd2 {[%clk 0:02:50.5]} 9... h5 {[%clk
0:02:32.5]} 10. f3 {[%clk 0:02:45.1]} 10... Kh7 {[%clk 0:02:30.1]} 11. h4 {[%clk
0:02:30.8]} 11... Bh6 {[%clk 0:02:29.6]} 12. Bf2 {[%clk 0:02:23.6]} 12... Ng8
{[%clk 0:01:58.4]} 13. g4 {[%clk 0:02:17.2]} 13... f5 {[%clk 0:01:42]} 14. exf5
{[%clk 0:02:15.7]} 14... gxf5 {[%clk 0:01:41.7]} 15. g5 {[%clk 0:02:14.5]} 15...
Bg7 {[%clk 0:01:40.5]} 16. f4 {[%clk 0:02:05.5]} 16... exf4 {[%clk 0:01:31.9]}
17. Bxh5 {[%clk 0:02:05.4]} 17... Nb4 {[%clk 0:01:26.1]} 18. Be2 {[%clk
0:01:41.5]} 18... Bd4 {[%clk 0:01:19.4]} 19. a3 {[%clk 0:01:37.8]} 19... Bxf2+
{[%clk 0:01:18.4]} 20. Kxf2 {[%clk 0:01:37.8]} 20... Na6 {[%clk 0:01:18.5]} 21.
Bd3 {[%clk 0:01:33.4]} 21... Qe7 {[%clk 0:01:16.9]} 22. Qh5+ {[%clk 0:01:28]}
22... Kg7 {[%clk 0:01:14.9]} 23. Rae1 {[%clk 0:01:28.6]} 23... Qc7 {[%clk
0:01:01.3]} 24. Ne2 {[%clk 0:01:24.4]} 24... Qb6 {[%clk 0:00:35]} 25. b3 {[%clk
0:01:18.7]} 25... Qa5 {[%clk 0:00:34.7]} 26. Nf3 {[%clk 0:01:11]} 26... Qxa3
{[%clk 0:00:22.9]} 27. Nxf4 {[%clk 0:01:10.4]} 27... Nb4 {[%clk 0:00:20.1]} 28.
Bb1 {[%clk 0:00:45.9]} 28... Qxb3 {[%clk 0:00:16.7]} 29. g6 {[%clk 0:00:45]}
29... Qb2+ {[%clk 0:00:01.7]} 30. Kg3 {[%clk 0:00:39.3]} 1-0

[Event "Early-Titled-Tuesday-Blitz-October-03-2023"]
[Site "Chess.com"]
[Date "2023.10.03"]
[Round "8"]
[White "NowInChess"]
[Black "ChampStan"]
[Result "0-1"]
[WhiteElo "2221"]
[BlackElo "2118"]
[TimeControl "180+1"]
[EndTime "9:29:02 PDT"]
[Termination "ChampStan won on time"]

1. e4 {[%clk 0:02:26.5]} 1... e5 {[%clk 0:02:54.2]} 2. Nf3 {[%clk 0:02:25.5]}
2... Nc6 {[%clk 0:02:51.5]} 3. Bc4 {[%clk 0:02:25.6]} 3... Bc5 {[%clk
0:02:50.9]} 4. c3 {[%clk 0:02:25.5]} 4... Nf6 {[%clk 0:02:50.8]} 5. d4 {[%clk
0:02:25.3]} 5... exd4 {[%clk 0:02:51.2]} 6. e5 {[%clk 0:02:23.6]} 6... d5 {[%clk
0:02:50.6]} 7. Bb5 {[%clk 0:02:23.7]} 7... Ne4 {[%clk 0:02:49.2]} 8. cxd4 {[%clk
0:02:24.2]} 8... Bb4+ {[%clk 0:02:49]} 9. Nbd2 {[%clk 0:02:15.6]} 9... O-O
{[%clk 0:02:45.3]} 10. a3 {[%clk 0:01:58.6]} 10... Bxd2+ {[%clk 0:02:42.2]} 11.
Nxd2 {[%clk 0:01:53.1]} 11... Nxd4 {[%clk 0:02:39]} 12. Bd3 {[%clk 0:01:46.6]}
12... Nxd2 {[%clk 0:02:30.4]} 13. Bxd2 {[%clk 0:01:45.3]} 13... Re8 {[%clk
0:02:23.1]} 14. f4 {[%clk 0:01:43.3]} 14... Qh4+ {[%clk 0:02:21.3]} 15. g3
{[%clk 0:01:41.6]} 15... Qh3 {[%clk 0:02:18.7]} 16. Be2 {[%clk 0:00:55]} 16...
Qg2 {[%clk 0:02:07.6]} 17. Rf1 {[%clk 0:00:51.9]} 17... Bf5 {[%clk 0:02:06.3]}
18. Rc1 {[%clk 0:00:34.1]} 18... Qxh2 {[%clk 0:01:56]} 19. Be3 {[%clk
0:00:32.2]} 19... Qxg3+ {[%clk 0:01:27.3]} 20. Bf2 {[%clk 0:00:28.2]} 20... Qxf4
{[%clk 0:01:18]} 21. Qxd4 {[%clk 0:00:24]} 21... Qxc1+ {[%clk 0:01:17]} 22. Bd1
{[%clk 0:00:19.3]} 22... Bc2 {[%clk 0:01:13.6]} 23. Be3 {[%clk 0:00:16.4]} 23...
Qxd1+ {[%clk 0:01:12.5]} 24. Qxd1 {[%clk 0:00:17]} 24... Bxd1 {[%clk 0:01:12.9]}
25. Kxd1 {[%clk 0:00:17.7]} 25... Rxe5 {[%clk 0:01:13.4]} 26. Bd4 {[%clk
0:00:18.1]} 26... Re4 {[%clk 0:01:11.9]} 27. Bc3 {[%clk 0:00:18.3]} 27... d4
{[%clk 0:01:11.6]} 28. Bb4 {[%clk 0:00:18.2]} 28... b6 {[%clk 0:01:11]} 29. Rf2
{[%clk 0:00:11.1]} 29... c5 {[%clk 0:01:10.8]} 30. Bd2 {[%clk 0:00:11.5]} 30...
Rae8 {[%clk 0:01:10.3]} 31. Bg5 {[%clk 0:00:11]} 31... Rg4 {[%clk 0:01:08.8]}
32. Bd2 {[%clk 0:00:10.4]} 32... Rg1+ {[%clk 0:01:08.3]} 33. Kc2 {[%clk
0:00:10.9]} 33... c4 {[%clk 0:01:08.2]} 34. Bb4 {[%clk 0:00:09.5]} 34... a5
{[%clk 0:01:05.7]} 35. Bd6 {[%clk 0:00:09]} 35... Rd8 {[%clk 0:01:05.3]} 36. Bc7
{[%clk 0:00:07.8]} 36... Rd7 {[%clk 0:01:03]} 37. Bxb6 {[%clk 0:00:07.5]} 37...
d3+ {[%clk 0:01:03.5]} 38. Kd2 {[%clk 0:00:07.6]} 38... Rb1 {[%clk 0:01:02.3]}
39. Kc3 {[%clk 0:00:05]} 39... Rc1+ {[%clk 0:01:01.9]} 40. Kd2 {[%clk
0:00:01.2]} 40... Rc2+ {[%clk 0:01:01.3]} 41. Ke1 {[%clk 0:00:01.4]} 41... Rxf2
{[%clk 0:01:02.2]} 0-1

[Event "Early-Titled-Tuesday-Blitz-October-03-2023"]
[Site "Chess.com"]
[Date "2023.10.03"]
[Round "8"]
[White "Rozhkov_V"]
[Black "MrVenky"]
[Result "0-1"]
[WhiteElo "2436"]
[BlackElo "2562"]
[TimeControl "180+1"]
[EndTime "9:29:03 PDT"]
[Termination "MrVenky won by checkmate"]

1. e4 {[%clk 0:03:00.9]} 1... c5 {[%clk 0:02:57.3]} 2. Nf3 {[%clk 0:03:00.8]}
2... Nc6 {[%clk 0:02:45.5]} 3. d4 {[%clk 0:03:00.8]} 3... cxd4 {[%clk
0:02:44.5]} 4. Nxd4 {[%clk 0:03:01.7]} 4... Nf6 {[%clk 0:02:43.8]} 5. Nc3 {[%clk
0:03:01.3]} 5... d6 {[%clk 0:02:43.3]} 6. f3 {[%clk 0:03:01.2]} 6... e5 {[%clk
0:02:41.2]} 7. Nb3 {[%clk 0:03:01.7]} 7... Be6 {[%clk 0:02:39.1]} 8. Be3 {[%clk
0:03:01.7]} 8... a5 {[%clk 0:02:35.4]} 9. Bb5 {[%clk 0:03:00.2]} 9... Be7 {[%clk
0:02:22.5]} 10. Qd2 {[%clk 0:03:00.1]} 10... O-O {[%clk 0:02:19.6]} 11. O-O-O
{[%clk 0:03:00.4]} 11... Nb4 {[%clk 0:02:05.5]} 12. Kb1 {[%clk 0:02:32.9]} 12...
d5 {[%clk 0:01:52.8]} 13. exd5 {[%clk 0:02:32.9]} 13... Nfxd5 {[%clk 0:01:51.8]}
14. Nxd5 {[%clk 0:02:33.3]} 14... Nxd5 {[%clk 0:01:47.7]} 15. Bc4 {[%clk
0:02:32.2]} 15... Nxe3 {[%clk 0:01:25.7]} 16. Qxe3 {[%clk 0:02:33.1]} 16... Qc8
{[%clk 0:01:25.4]} 17. Bxe6 {[%clk 0:02:33.7]} 17... Qxe6 {[%clk 0:01:25.2]} 18.
a3 {[%clk 0:02:34.3]} 18... a4 {[%clk 0:01:18.1]} 19. Nc1 {[%clk 0:02:33.5]}
19... b5 {[%clk 0:01:16.3]} 20. Rhe1 {[%clk 0:02:33.2]} 20... b4 {[%clk
0:01:13.5]} 21. axb4 {[%clk 0:02:27.9]} 21... Bxb4 {[%clk 0:01:12.8]} 22. c3
{[%clk 0:02:26.3]} 22... Bd6 {[%clk 0:01:01.7]} 23. Nd3 {[%clk 0:02:12.8]} 23...
a3 {[%clk 0:00:59]} 24. Rd2 {[%clk 0:01:57.6]} 24... axb2 {[%clk 0:00:57.4]} 25.
Rxb2 {[%clk 0:01:58.5]} 25... Ba3 {[%clk 0:00:56.2]} 26. Rb6 {[%clk 0:01:50.5]}
26... Rfb8 {[%clk 0:00:53.5]} 27. Rxb8+ {[%clk 0:01:40.7]} 27... Rxb8+ {[%clk
0:00:52.5]} 28. Ka1 {[%clk 0:01:32]} 28... Qa6 {[%clk 0:00:40.7]} 29. Nb2 {[%clk
0:01:06.9]} 29... Bxb2+ {[%clk 0:00:36]} 30. Kb1 {[%clk 0:01:07.5]} 30... Bxc3+
{[%clk 0:00:34.8]} 31. Kc2 {[%clk 0:01:08.2]} 31... Qa2+ {[%clk 0:00:27]} 32.
Kd3 {[%clk 0:01:07.7]} 32... Bxe1 {[%clk 0:00:23.8]} 33. Qxe1 {[%clk 0:01:08.6]}
33... Qd5+ {[%clk 0:00:19.3]} 34. Ke3 {[%clk 0:01:07.7]} 34... Qd4+ {[%clk
0:00:18.7]} 35. Ke2 {[%clk 0:01:08.2]} 35... Rb2+ {[%clk 0:00:18.6]} 36. Kf1
{[%clk 0:01:08.8]} 36... Qd3+ {[%clk 0:00:18.6]} 37. Kg1 {[%clk 0:01:09]} 37...
Rb1 {[%clk 0:00:19.1]} 38. Kf2 {[%clk 0:01:09.7]} 38... Rxe1 {[%clk 0:00:18.1]}
39. Kxe1 {[%clk 0:01:10.6]} 39... Qc2 {[%clk 0:00:18]} 40. Kf1 {[%clk
0:01:10.9]} 40... f5 {[%clk 0:00:18.6]} 41. h4 {[%clk 0:01:11.2]} 41... e4
{[%clk 0:00:19.5]} 42. fxe4 {[%clk 0:01:11.1]} 42... fxe4 {[%clk 0:00:19]} 43.
Kg1 {[%clk 0:01:12]} 43... e3 {[%clk 0:00:18.9]} 44. Kh2 {[%clk 0:01:12.9]}
44... e2 {[%clk 0:00:18.4]} 45. h5 {[%clk 0:01:13.8]} 45... e1=Q {[%clk
0:00:17.7]} 46. h6 {[%clk 0:01:14.7]} 46... Qh4+ {[%clk 0:00:16.2]} 47. Kg1
{[%clk 0:01:14.8]} 47... Qcf2# {[%clk 0:00:16.7]} 0-1

[Event "Early-Titled-Tuesday-Blitz-October-03-2023"]
[Site "Chess.com"]
[Date "2023.10.03"]
[Round "8"]
[White "Kostya0705"]
[Black "EvgenyBurmakin"]
[Result "1-0"]
[WhiteElo "2600"]
[BlackElo "2339"]
[TimeControl "180+1"]
[EndTime "9:29:04 PDT"]
[Termination "Kostya0705 won on time"]

1. e4 {[%clk 0:03:00.9]} 1... c5 {[%clk 0:02:59.6]} 2. Nf3 {[%clk 0:02:59.9]}
2... e6 {[%clk 0:03:00]} 3. d4 {[%clk 0:02:59.6]} 3... cxd4 {[%clk 0:03:00.9]}
4. Nxd4 {[%clk 0:03:00.4]} 4... Nf6 {[%clk 0:03:01.4]} 5. Nc3 {[%clk 0:03:00.8]}
5... d6 {[%clk 0:03:00]} 6. g4 {[%clk 0:03:00]} 6... Nc6 {[%clk 0:02:54.3]} 7.
g5 {[%clk 0:02:58.1]} 7... Nd7 {[%clk 0:02:51.1]} 8. Rg1 {[%clk 0:02:56.8]} 8...
Nde5 {[%clk 0:02:39.5]} 9. Be3 {[%clk 0:02:52.6]} 9... Be7 {[%clk 0:02:34.4]}
10. f4 {[%clk 0:02:50.3]} 10... Nd7 {[%clk 0:02:17.2]} 11. Qd2 {[%clk
0:02:48.7]} 11... Nc5 {[%clk 0:02:08.9]} 12. O-O-O {[%clk 0:02:46.8]} 12... Nxd4
{[%clk 0:01:35.8]} 13. Bxd4 {[%clk 0:02:35.2]} 13... O-O {[%clk 0:01:35.4]} 14.
h4 {[%clk 0:02:34.1]} 14... Qc7 {[%clk 0:01:25.3]} 15. h5 {[%clk 0:02:27.2]}
15... Rd8 {[%clk 0:01:18.6]} 16. g6 {[%clk 0:02:25]} 16... fxg6 {[%clk
0:01:10.5]} 17. Bh3 {[%clk 0:02:19]} 17... b5 {[%clk 0:00:52.5]} 18. hxg6 {[%clk
0:02:14.5]} 18... h6 {[%clk 0:00:52.2]} 19. Nxb5 {[%clk 0:02:11.6]} 19... Qb7
{[%clk 0:00:50]} 20. Nc3 {[%clk 0:02:04]} 20... Rb8 {[%clk 0:00:49]} 21. b3
{[%clk 0:02:02]} 21... Nxe4 {[%clk 0:00:46.7]} 22. Nxe4 {[%clk 0:02:00.1]} 22...
Qxe4 {[%clk 0:00:47.6]} 23. Rde1 {[%clk 0:01:54.3]} 23... Qf3 {[%clk 0:00:35.1]}
24. Bxe6+ {[%clk 0:01:42.3]} 24... Bxe6 {[%clk 0:00:35.3]} 25. Rxe6 {[%clk
0:01:43.1]} 25... Bf8 {[%clk 0:00:35.9]} 26. Rge1 {[%clk 0:01:34.2]} 26... Qg4
{[%clk 0:00:24.9]} 27. Qe3 {[%clk 0:01:28]} 27... Qf5 {[%clk 0:00:20.6]} 28. Kb2
{[%clk 0:01:22.7]} 28... Rbc8 {[%clk 0:00:20.2]} 29. Re2 {[%clk 0:01:22]} 29...
a5 {[%clk 0:00:18.4]} 30. a4 {[%clk 0:01:18]} 30... h5 {[%clk 0:00:16]} 31. Bb6
{[%clk 0:01:12.5]} 31... Rd7 {[%clk 0:00:09.4]} 32. Rg2 {[%clk 0:01:11.9]} 32...
h4 {[%clk 0:00:07.9]} 33. Rh2 {[%clk 0:01:09.3]} 33... h3 {[%clk 0:00:07.5]} 34.
Qxh3 {[%clk 0:01:00.9]} 34... Rxc2+ {[%clk 0:00:05.8]} 35. Kb1 {[%clk
0:00:56.2]} 35... Rc5+ {[%clk 0:00:03.4]} 36. Qxf5 {[%clk 0:00:54.9]} 36... Rxf5
{[%clk 0:00:04.3]} 37. Re3 {[%clk 0:00:53.8]} 37... Rxf4 {[%clk 0:00:04.3]} 38.
Reh3 {[%clk 0:00:54.2]} 38... Rf1+ {[%clk 0:00:01.9]} 39. Kb2 {[%clk 0:00:52.8]}
1-0

[Event "Early-Titled-Tuesday-Blitz-October-03-2023"]
[Site "Chess.com"]
[Date "2023.10.03"]
[Round "8"]
[White "Jojo_898"]
[Black "DoctorCheckyll"]
[Result "1-0"]
[WhiteElo "2371"]
[BlackElo "2199"]
[TimeControl "180+1"]
[EndTime "9:29:04 PDT"]
[Termination "Jojo_898 won by checkmate"]

1. e4 {[%clk 0:03:00.9]} 1... d6 {[%clk 0:02:59.5]} 2. d4 {[%clk 0:03:00.4]}
2... Nf6 {[%clk 0:03:00]} 3. Nc3 {[%clk 0:02:59.5]} 3... g6 {[%clk 0:03:00.3]}
4. Nf3 {[%clk 0:02:59.3]} 4... Bg7 {[%clk 0:03:00.3]} 5. Be2 {[%clk 0:02:57.1]}
5... O-O {[%clk 0:02:59.7]} 6. O-O {[%clk 0:02:57.3]} 6... a6 {[%clk 0:03:00]}
7. h3 {[%clk 0:02:57]} 7... Nc6 {[%clk 0:02:59.8]} 8. Bg5 {[%clk 0:02:56.6]}
8... h6 {[%clk 0:02:57.8]} 9. Be3 {[%clk 0:02:56.2]} 9... e5 {[%clk 0:02:57.6]}
10. Qd2 {[%clk 0:02:55.4]} 10... exd4 {[%clk 0:02:41.9]} 11. Nxd4 {[%clk
0:02:54.6]} 11... Nxd4 {[%clk 0:02:40.9]} 12. Bxd4 {[%clk 0:02:54.5]} 12... Re8
{[%clk 0:02:39.9]} 13. Bf3 {[%clk 0:02:52.4]} 13... Be6 {[%clk 0:02:30.6]} 14.
Rad1 {[%clk 0:02:50]} 14... Qc8 {[%clk 0:02:26.9]} 15. Rfe1 {[%clk 0:02:40.5]}
15... Nd7 {[%clk 0:01:53.6]} 16. Bxg7 {[%clk 0:02:11.1]} 16... Kxg7 {[%clk
0:01:54.5]} 17. Qd4+ {[%clk 0:02:10.4]} 17... Ne5 {[%clk 0:01:54.7]} 18. Be2
{[%clk 0:02:05.8]} 18... Kh7 {[%clk 0:01:53.7]} 19. f4 {[%clk 0:02:05.5]} 19...
Nc6 {[%clk 0:01:51]} 20. Qd2 {[%clk 0:02:03]} 20... b5 {[%clk 0:01:46.4]} 21.
Bf3 {[%clk 0:01:57.4]} 21... Rb8 {[%clk 0:01:37.5]} 22. e5 {[%clk 0:01:51.9]}
22... Ne7 {[%clk 0:01:11.4]} 23. exd6 {[%clk 0:01:51.3]} 23... cxd6 {[%clk
0:01:11.6]} 24. Ne4 {[%clk 0:01:51.5]} 24... Nf5 {[%clk 0:01:05.8]} 25. Nf6+
{[%clk 0:01:50.3]} 25... Kg7 {[%clk 0:01:03]} 26. Nxe8+ {[%clk 0:01:50.1]} 26...
Qxe8 {[%clk 0:01:03.1]} 27. Bd5 {[%clk 0:01:45.2]} 27... Qe7 {[%clk 0:00:59.3]}
28. g4 {[%clk 0:01:43]} 28... Nh4 {[%clk 0:00:39.4]} 29. Qd4+ {[%clk 0:01:16.3]}
29... Kh7 {[%clk 0:00:37.7]} 30. f5 {[%clk 0:01:14.5]} 30... Bxd5 {[%clk
0:00:32.3]} 31. Rxe7 {[%clk 0:01:09.5]} 31... Nf3+ {[%clk 0:00:31.8]} 32. Kf2
{[%clk 0:01:10.2]} 32... Nxd4 {[%clk 0:00:30.7]} 33. Rxd4 {[%clk 0:01:10.9]}
33... Bxa2 {[%clk 0:00:30.8]} 34. b3 {[%clk 0:01:10.9]} 34... gxf5 {[%clk
0:00:30.7]} 35. Rxf7+ {[%clk 0:01:09.2]} 35... Kg6 {[%clk 0:00:31]} 36. Rxf5
{[%clk 0:01:08.9]} 36... Bb1 {[%clk 0:00:28.5]} 37. Rxd6+ {[%clk 0:01:07.9]}
37... Kg7 {[%clk 0:00:29.1]} 38. Rc5 {[%clk 0:01:07.4]} 38... Rf8+ {[%clk
0:00:28.3]} 39. Kg2 {[%clk 0:01:05.8]} 39... a5 {[%clk 0:00:26.8]} 40. Rd1
{[%clk 0:00:59.3]} 40... Ba2 {[%clk 0:00:18]} 41. Ra1 {[%clk 0:00:59.8]} 41...
a4 {[%clk 0:00:08.1]} 42. Rxa2 {[%clk 0:00:59.7]} 42... axb3 {[%clk 0:00:08.7]}
43. cxb3 {[%clk 0:01:00.1]} 43... Rf4 {[%clk 0:00:08.1]} 44. Ra6 {[%clk
0:00:59.7]} 44... Rb4 {[%clk 0:00:07.9]} 45. Rc7+ {[%clk 0:01:00.2]} 45... Kf8
{[%clk 0:00:08.4]} 46. Ra8# {[%clk 0:01:00.5]} 1-0

[Event "Early-Titled-Tuesday-Blitz-October-03-2023"]
[Site "Chess.com"]
[Date "2023.10.03"]
[Round "8"]
[White "Quattroporte300"]
[Black "LuisFSiles"]
[Result "1-0"]
[WhiteElo "2384"]
[BlackElo "2269"]
[TimeControl "180+1"]
[EndTime "9:29:09 PDT"]
[Termination "Quattroporte300 won on time"]

1. e4 {[%clk 0:02:58.2]} 1... c5 {[%clk 0:02:59.7]} 2. Nc3 {[%clk 0:02:57.3]}
2... Nc6 {[%clk 0:02:59.4]} 3. Bb5 {[%clk 0:02:55.5]} 3... Nd4 {[%clk
0:02:58.2]} 4. Bc4 {[%clk 0:02:56]} 4... g6 {[%clk 0:02:57.8]} 5. Nge2 {[%clk
0:02:55.9]} 5... Bg7 {[%clk 0:02:57.5]} 6. Nxd4 {[%clk 0:02:56]} 6... cxd4
{[%clk 0:02:57.4]} 7. Qf3 {[%clk 0:02:54.5]} 7... Nh6 {[%clk 0:02:49.2]} 8. Ne2
{[%clk 0:02:54.2]} 8... O-O {[%clk 0:02:46.4]} 9. d3 {[%clk 0:02:54.3]} 9... Ng4
{[%clk 0:02:45.9]} 10. Bb3 {[%clk 0:02:53.6]} 10... Ne5 {[%clk 0:02:39.1]} 11.
Qg3 {[%clk 0:02:53]} 11... Nc6 {[%clk 0:02:38.8]} 12. f4 {[%clk 0:02:51.3]}
12... d6 {[%clk 0:02:37.1]} 13. Bd2 {[%clk 0:02:48.3]} 13... a5 {[%clk
0:02:36.9]} 14. a4 {[%clk 0:02:47.5]} 14... Be6 {[%clk 0:02:36.3]} 15. Bxe6
{[%clk 0:02:42.8]} 15... fxe6 {[%clk 0:02:35.9]} 16. O-O {[%clk 0:02:43.2]}
16... Kh8 {[%clk 0:01:54.8]} 17. h4 {[%clk 0:02:40.2]} 17... e5 {[%clk
0:01:34.7]} 18. h5 {[%clk 0:02:30.8]} 18... gxh5 {[%clk 0:01:31.4]} 19. f5
{[%clk 0:02:24.2]} 19... Bf6 {[%clk 0:01:29.8]} 20. Qh3 {[%clk 0:02:06.1]} 20...
h4 {[%clk 0:01:28.5]} 21. g4 {[%clk 0:02:06.5]} 21... hxg3 {[%clk 0:01:26.8]}
22. Kg2 {[%clk 0:02:05.9]} 22... Qe8 {[%clk 0:01:14.7]} 23. Rh1 {[%clk
0:02:05.5]} 23... Qf7 {[%clk 0:01:15]} 24. Nxg3 {[%clk 0:01:58.6]} 24... Rg8
{[%clk 0:01:12.8]} 25. Kf3 {[%clk 0:01:56.5]} 25... Bg5 {[%clk 0:01:00.1]} 26.
Rh2 {[%clk 0:01:45.4]} 26... Bxd2 {[%clk 0:00:53.5]} 27. Rxd2 {[%clk 0:01:45]}
27... Rg5 {[%clk 0:00:54]} 28. Rh1 {[%clk 0:01:44.4]} 28... Rag8 {[%clk
0:00:53.9]} 29. Rg2 {[%clk 0:01:25.8]} 29... d5 {[%clk 0:00:25.8]} 30. Ke2
{[%clk 0:01:00.2]} 30... dxe4 {[%clk 0:00:19]} 31. Rgh2 {[%clk 0:00:50.5]} 31...
exd3+ {[%clk 0:00:13.7]} 32. cxd3 {[%clk 0:00:51.4]} 32... R8g7 {[%clk
0:00:12.7]} 33. f6 {[%clk 0:00:35.1]} 33... Qxf6 {[%clk 0:00:12.2]} 34. Qc8+
{[%clk 0:00:33.8]} 1-0

[Event "Early-Titled-Tuesday-Blitz-October-03-2023"]
[Site "Chess.com"]
[Date "2023.10.03"]
[Round "8"]
[White "Zavgorodniy_Sergiy"]
[Black "sofaceindisguise"]
[Result "1-0"]
[WhiteElo "2631"]
[BlackElo "2779"]
[TimeControl "180+1"]
[EndTime "9:29:10 PDT"]
[Termination "Zavgorodniy_Sergiy won by resignation"]

1. e4 {[%clk 0:03:00.9]} 1... c5 {[%clk 0:02:57]} 2. Nf3 {[%clk 0:03:00.8]} 2...
e6 {[%clk 0:02:56.7]} 3. d3 {[%clk 0:02:59.6]} 3... Nc6 {[%clk 0:02:56.6]} 4. g3
{[%clk 0:02:59.1]} 4... Nf6 {[%clk 0:02:56.9]} 5. Bg2 {[%clk 0:02:58.3]} 5... g6
{[%clk 0:02:57.4]} 6. O-O {[%clk 0:02:55.2]} 6... d5 {[%clk 0:02:56.2]} 7. e5
{[%clk 0:02:48.2]} 7... Nd7 {[%clk 0:02:54.4]} 8. Qe2 {[%clk 0:02:48.8]} 8...
Bg7 {[%clk 0:02:52]} 9. Bf4 {[%clk 0:02:47.1]} 9... O-O {[%clk 0:02:48.4]} 10.
h4 {[%clk 0:02:42.9]} 10... f6 {[%clk 0:02:41.7]} 11. exf6 {[%clk 0:02:29.4]}
11... Qxf6 {[%clk 0:02:41.7]} 12. Nc3 {[%clk 0:02:29]} 12... h6 {[%clk 0:02:06]}
13. Rae1 {[%clk 0:02:20.2]} 13... e5 {[%clk 0:02:01.7]} 14. Nxd5 {[%clk
0:01:45.4]} 14... Qf7 {[%clk 0:02:00.8]} 15. Nc7 {[%clk 0:01:44.5]} 15... exf4
{[%clk 0:01:55]} 16. Nxa8 {[%clk 0:01:44.3]} 16... Nd4 {[%clk 0:01:42.3]} 17.
Nxd4 {[%clk 0:00:59.4]} 17... Bxd4 {[%clk 0:01:43.2]} 18. c3 {[%clk 0:00:59.7]}
18... Be5 {[%clk 0:01:38.3]} 19. Qe4 {[%clk 0:00:52.5]} 19... Kg7 {[%clk
0:01:19.3]} 20. Bh3 {[%clk 0:00:51.4]} 20... Nf6 {[%clk 0:01:11.7]} 21. Qxe5
{[%clk 0:00:48.2]} 21... Bxh3 {[%clk 0:01:12.6]} 22. Nc7 {[%clk 0:00:48.3]}
22... Kh7 {[%clk 0:00:54.7]} 23. Qxf4 {[%clk 0:00:48.2]} 23... Bxf1 {[%clk
0:00:43.5]} 24. Kxf1 {[%clk 0:00:49.1]} 24... Qd7 {[%clk 0:00:14.1]} 25. Ne6
{[%clk 0:00:45.2]} 25... Rf7 {[%clk 0:00:13.4]} 26. Nxc5 {[%clk 0:00:38.6]}
26... Qd5 {[%clk 0:00:13.6]} 27. Ne4 {[%clk 0:00:36.5]} 27... Qxd3+ {[%clk
0:00:14]} 28. Kg1 {[%clk 0:00:35.4]} 28... Qa6 {[%clk 0:00:05.1]} 29. Nxf6+
{[%clk 0:00:33.3]} 29... Kg7 {[%clk 0:00:05]} 30. Ne8+ {[%clk 0:00:31.8]} 30...
Kf8 {[%clk 0:00:05.7]} 1-0